Cogmind - Beta 15 @@@ ROGUE MODE // 2025.09.08 @ 16:52:17 Player: CatgirlLyra Result: Self-destructed Performance ------------- Evolutions (4) 2000 Regions Visited (4) 800 Robots Destroyed (47) 235 Value Destroyed (1193) 1193 Prototype IDs (14) 280 Alien Tech Used (0) 0 Bonus (800) 800 TOTAL SCORE: 5308 Bonus ------- Registered with UFD 300 Met Optimus in HQ 500 Cogmind --------- Core Integrity 661/850 Matter 41/300 Energy 290/290 System Corruption 5% Temperature Cool (0) Movement Treading (570) Ox5 Location -6/Factory Parts ------- > --- POWER (2) -------- Reinforced Deuterium Engine > --- PROPULSION (4) --- Armored Treads > --- UTILITY (6) ------ Scrap Suit Improved Heat Sink Huge Storage Unit > --- WEAPON (3) ------- Heavy Ion Cannon Heavy Flak Cannon > --- INVENTORY (25) --- Cooled Cesium-ion Thruster Scrap Suit Energy Well (350) High-capacity Matter Pod (0) Enhanced Optical Array Enhanced Optical Array Improved Terrain Scanner Surveybot 24 Chip Transport Network Coupler Makeshift Salvage Targeting Computer Makeshift ECM Suite Hardened Light Armor Plating Graphene Brace Focal Shield Thermal Shield Improved Shield Generator A0-MCA's Component Scanner System Restoration Module High-powered Tractor Beam Plasma Cutter CPS Tube (2) CPS Tube (1) Peak State ------------ > --- POWER ------------ Improved Ion Engine Improved Deuterium Engine > --- PROPULSION ------- Armored Treads Armored Treads Overtuned Treads Overtuned Treads > --- UTILITY ---------- Scrap Suit Improved Heat Sink Huge Storage Unit Hardened Heavy Armor Plating > --- WEAPON ----------- Overtuned Pulse Rifle Heavy Flak Cannon Rocket Launcher > --- INVENTORY -------- Scrap Suit Energy Well High-capacity Matter Pod Enhanced Optical Array Enhanced Optical Array Improved Terrain Scanner Surveybot 24 Chip Transport Network Coupler Makeshift Salvage Targeting Computer Makeshift ECM Suite Hardened Light Armor Plating Focal Shield Thermal Shield Improved Shield Generator A0-MCA's Component Scanner System Restoration Module High-powered Tractor Beam Plasma Cutter CPS Tube CPS Tube [Rating: 56] Favorites ----------- Power Ion Engine Engine Ion Engine Power Core Light Nuclear Core Propulsion Light Treads Treads Light Treads Leg Aluminum Leg Flight Unit Cooled Cesium-ion Thruster Utility Huge Storage Unit Device Scrap Suit Storage Huge Storage Unit Processor Transport Network Coupler Protection Core Shielding Weapon Assault Rifle Energy Gun Overtuned Pulse Rifle Energy Cannon Heavy Ion Cannon Ballistic Gun Assault Rifle Ballistic Cannon Heavy Flak Cannon Launcher Rocket Launcher Special Weapon CPS Tube Slashing Weapon Mining Claw Build | -11 -10 -10 -8 -6 ------- Run | Yrd Mat Sub Scr Fac Slots Evolved 8 | . . . . 8 Power 1 | . . . . 1 Propulsion 2 | . . . . 2 Utility 4 | . . . . 4 Weapon 1 | . . . . 1 Parts Attached 47 | 8 7 2 11 19 Power 10 | 1 2 . 3 4 Engine 8 | 1 2 . 2 3 Core 2 | . . . 1 1 Reactor . | . . . . . Propulsion 11 | 4 1 . 2 4 Treads 8 | 2 1 . 2 3 Leg 2 | 2 . . . . Wheel . | . . . . . Hover . | . . . . . Flight 1 | . . . . 1 Utility 13 | 1 3 1 2 6 Device 3 | . . . . 3 Storage 2 | 1 1 . . . Processor 3 | . 2 . . 1 Hackware . | . . . . . Protection 5 | . . 1 2 2 Artifact . | . . . . . Weapon 13 | 2 1 1 4 5 Energy Gun 3 | 1 . . 2 . Energy Cannon . | . . . . . Ballistic Gun 5 | 1 1 . 2 1 Ballistic Cannon 1 | . . . . 1 Launcher 2 | . . . . 2 Special Weapon 1 | . . . . 1 Impact Weapon . | . . . . . Slashing Weapon 1 | . . 1 . . Piercing Weapon . | . . . . . Special Melee Weapon . | . . . . . Unidentified Prototypes 1 | . . . . 1 Parts Lost 19 | . . . 3 16 Power 5 | . . . 1 4 Propulsion 4 | . . . . 4 Utility 3 | . . . . 3 Weapon 7 | . . . 2 5 Highest Loss Streak 4 | . . . 3 4 To Critical Strikes . | . . . . . Average Backups 19 | 4 12 17 23 20 Power 1 | . 1 2 2 . Propulsion 2 | 2 2 3 2 . Utility 10 | . 5 7 12 14 Weapon 4 | . 3 5 4 2 Tool/Special . | . . . . . Unused Backups 34 | . 4 . 12 18 Power 2 | . . . 2 . Propulsion 2 | . 2 . . . Utility 24 | . 1 . 7 16 Weapon 4 | . 1 . 3 . Tool/Special 2 | . . . . 2 Average Slot Usage (%) 97 | . 99 100 99 81 Engine 13 | . 14 14 13 9 Treads 25 | . 23 28 28 19 Leg 1 | . 4 . . . Device 1 | . . . . 10 Storage 13 | . 13 14 14 6 Processor 3 | . 13 1 . 3 Protection 10 | . . 12 14 8 Energy Gun 2 | . 6 . . 10 Ballistic Gun 23 | . 21 27 27 3 Peak Build Rating 56 | 7 8 9 31 56 Average Rating 18 | 5 7 8 18 48 On Entrance 10 | . 7 8 9 29 Naked Turns . | . . . . . Heaviest Build 146 | 11 89 90 104 146 Greatest Support 76 | 40 40 40 40 76 Greatest Overweight (x) 6 | . 4 2 2 6 Average Overweight (x) 1 | . 1 2 2 1 Largest Inventory Capacity 25 | 8 25 25 25 25 Average Capacity 24 | 7 22 25 25 25 Most Carried 25 | 8 17 20 25 23 Average Carried 20 | 4 12 18 24 21 Final Capacity 25 | 8 25 25 25 25 Final Carried 25 | 8 17 20 25 23 Class Distribution -------------------- 88% | Mutant 9% | Scavenger-Scrapper Dominant Class ---------------- Mutant | -10/Materials Mutant | -10/Subcaves Mutant | -8/Scraptown Scavenger-Scrapper | -6/Factory Resources | -11 -10 -10 -8 -6 ----------- Run | Yrd Mat Sub Scr Fac Matter Collected 1628 | 284 443 15 417 469 Remotely . | . . . . . Salvage Created 1287 | 122 675 52 . 438 Parts 87 | 10 45 2 . 30 Haulers Intercepted 2 | . 2 . . . Recyclers Shooed 2 | . 2 . . . Parts Field Recycled . | . . . . . Retrieved Matter . | . . . . . Parts Self-Destructed 8 | . . 8 . . Prevented . | . . . . . Kills | -11 -10 -10 -8 -6 ------- Run | Yrd Mat Sub Scr Fac Combat Hostiles Destroyed 32 | . 15 1 . 16 Guns 24 | . 15 1 . 8 Cannons 3 | . . . . 3 AOE 4 | . . . . 4 Classes Destroyed 13 | 2 7 1 . 3 Worker 4 | . 1 . . 3 Builder 1 | . 1 . . . Tunneler 3 | 2 1 . . . Hauler 2 | . 2 . . . Recycler 2 | 1 1 . . . Operator 1 | . 1 . . . Watcher 2 | . 2 . . . Swarmer 14 | . 8 . . 6 Grunt 12 | . 7 . . 5 Brawler 1 | . . . . 1 Programmer 3 | . . . . 3 Heavy 1 | . . . . 1 Subdweller 1 | . . 1 . . Best Kill Streak 7 | 3 7 1 . 5 Combat Bots Only 5 | . 5 1 . 4 Max Kills in Single Turn 2 | 1 2 1 . 2 Gunslinging . | . . . . . Exploded 2 | . . . . 2 Melee . | . . . . . Uniques/NPCs Destroyed . | . . . . . Combat | -11 -10 -10 -8 -6 -------- Run | Yrd Mat Sub Scr Fac Hostile Shots Fired 274 | . 81 2 42 149 Missed 77 | . 24 1 13 39 Hits 197 | . 57 1 29 110 Projectile 197 | . 57 1 29 110 Critical Strikes 6 | . . . 3 3 Damage Taken 3526 | . 497 19 497 2513 Core 330 | . 95 . 46 189 Absorbed by Shields . | . . . . . Regen/Repaired (Parts) 152 | . 102 . . 50 Core Remaining (%) 71 | 100 . . 43 . Volleys Fired 181 | 10 88 6 4 73 Largest 3 | 2 2 2 2 3 Hottest 193 | 60 60 40 55 193 Shots Fired 333 | 20 170 11 8 124 Gun 283 | 20 170 11 8 74 Cannon 15 | . . . . 15 Launcher 34 | . . . . 34 Special 1 | . . . . 1 Kinetic 171 | 10 115 11 8 27 Thermal 127 | 10 55 . . 62 Explosive 34 | . . . . 34 Electromagnetic . | . . . . . Robot Hit Streak 23 | 4 11 3 5 23 Robot Miss Streak 10 | 2 10 3 1 4 Penetration Max . | . . . . . Secondary Targets 4 | . 4 . . . Max Gunslinging Chain 1 | . 1 . . . Shots Hit Robots 198 | 12 94 3 6 83 Core Hits 92 | 4 37 2 1 48 Critical Kills 2 | . . . . 2 Critical Parts Destroyed 2 | . 2 . . . Critical Strikes 8 | . 2 . . 6 Burn 4 | . . . . 4 Meltdown 1 | . . . . 1 Destroy 3 | . 2 . . 1 Melee Attacks 1 | . . 1 . . Impact . | . . . . . Slashing 1 | . . 1 . . Piercing . | . . . . . Sneak Attacks . | . . . . . Combat Hostiles . | . . . . . Follow-up Attacks . | . . . . . Damage Inflicted 3828 | 131 1170 36 118 2373 Guns 2501 | 131 1134 36 118 1082 Cannons 295 | . . . . 295 Explosions 972 | . . . . 972 Melee . | . . . . . Ramming 60 | . 36 . . 24 Kinetic 1445 | 51 826 36 118 414 Thermal 1351 | 80 308 . . 963 Explosive 972 | . . . . 972 Electromagnetic . | . . . . . Impact . | . . . . . Slashing . | . . . . . Piercing . | . . . . . Highest Corruption 5 | . . . . 5 Average Corruption 3 | . . . . 3 Corruption Purged . | . . . . . Corruption Blocked . | . . . . . Effects 12 | . . . . 12 Message Errors 7 | . . . . 7 Matter Fused 1 | . . . . 1 Energy Discharges 2 | . . . . 2 Parts Rejected 1 | . . . . 1 Weapon Failures 1 | . . . . 1 Overload Shots . | . . . . . Overflow Damage 19 | . . . . 19 Projectiles . | . . . . . Explosions 19 | . . . . 19 Melee . | . . . . . Knockbacks 3 | . 2 . . 1 Impact 2 | . 2 . . . Kinetic 1 | . . . . 1 Secondary . | . . . . . Self-Inflicted Damage 117 | . . . . 117 Shots 2 | . . . . 2 Rammed 11 | . 5 . . 6 Targets Rammed 11 | . 5 . . 6 Kicked . | . . . . . Crushed . | . . . . . Highest Temperature 552 | . 36 . 154 552 Average Temperature 144 | . 30 . 58 195 Received Heat Transfer 861 | . 114 . 369 378 Effects 7 | . . . . 7 Shutdowns 2 | . . . . 2 Energy Bleed 1 | . . . . 1 Matter Decay 1 | . . . . 1 Short Circuit 2 | . . . . 2 Damage (minor) 1 | . . . . 1 Siege Activations . | . . . . . Martial Activations . | . . . . . Shielding Activations . | . . . . . Robots Disrupted . | . . . . . Combat Hostiles . | . . . . . Robots Corrupted . | . . . . . Combat Hostiles . | . . . . . Parts Fried . | . . . . . Impact Corruptions . | . . . . . Robots Melted 1 | . . . . 1 Combat Hostiles 1 | . . . . 1 Parts Melted 3 | . . . . 3 Heat Transferred 3260 | 175 700 . . 2385 Parts Sabotaged . | . . . . . Parts Stolen . | . . . . . Parts Stripped . | . . . . . Power Chain Reactions . | . . . . . Alert | -11 -10 -10 -8 -6 ------- Run | Yrd Mat Sub Scr Fac Maximum Alert Level . | . . . . . Low Security (%) 100 | 100 100 . . 100 Level 1 . | . . . . . Level 2 . | . . . . . Level 3 . | . . . . . Level 4 . | . . . . . Level 5 . | . . . . . High Security . | . . . . . Max Security . | . . . . . Peak Influence 175 | 10 110 . . 175 Initial . | . . . . . Average 38 | 1 30 . . 57 Influence Increases 1030 | 15 455 . . 560 Destroy 0b10 Robot/C 620 | . 300 . . 320 Destroy 0b10 Robot/NC 75 | 15 45 . . 15 Destroy Leader 158 | . 78 . . 80 Successful Hack 27 | . 15 . . 12 Disable Machine 60 | . . . . 60 Destroy Structure 75 | . 2 . . 73 Lose Combat Pursuer 15 | . 15 . . . Influence Decreases 849 | 15 455 . . 379 Time Decay 709 | 15 455 . . 239 Lost Part 140 | . . . . 140 Squads Dispatched 8 | . 5 . . 3 Investigation 2 | . 2 . . . Extermination 2 | . . . . 2 Reinforcement 4 | . 3 . . 1 Assault . | . . . . . Garrison . | . . . . . Intercept . | . . . . . Searches Triggered . | . . . . . Construction Impeded . | . . . . . Haulers Reinforced . | . . . . . Active Scanning Responses . | . . . . . Cargo Convoy Interrupts . | . . . . . Stealth | -11 -10 -10 -8 -6 --------- Run | Yrd Mat Sub Scr Fac Distress Signals 1 | . 1 . . . Communications Jammed . | . . . . . Distress Signals . | . . . . . Times Spotted 57 | . 34 1 6 16 Peak Tracking Total 5 | . 5 1 4 3 Tactical Retreats 1 | . 1 . . . Traps | -11 -10 -10 -8 -6 ------- Run | Yrd Mat Sub Scr Fac Traps Triggered 3 | . 2 . . 1 Indirectly . | . . . . . Trap Hack Attempts . | . . . . . Triggered . | . . . . . Disarmed . | . . . . . Reprogrammed . | . . . . . Reused . | . . . . . Traps Extracted . | . . . . . Installed . | . . . . . Triggered . | . . . . . Machines | -11 -10 -10 -8 -6 ---------- Run | Yrd Mat Sub Scr Fac Machines Disabled 4 | . . . . 4 Max in Single Turn 3 | . . . . 3 Machines Repaired . | . . . . . Machines Dismantled . | . . . . . Machines Sabotaged . | . . . . . Overloaded Fab Kills . | . . . . . Hacking | -11 -10 -10 -8 -6 --------- Run | Yrd Mat Sub Scr Fac Machines Accessed 15 | . 7 . 7 1 Terminals 5 | . 5 . . . Fabricators . | . . . . . Repair Stations 1 | . 1 . . . Recycling Units 2 | . 1 . . 1 Scanalyzers . | . . . . . Garrison Access . | . . . . . Total Hacks 61 | . 14 . 44 3 Successful 51 | . 5 . 44 2 Failed 10 | . 9 . . 1 Catastrophic 2 | . 1 . . 1 Database Lockouts . | . . . . . Manual 7 | . 5 . . 2 Terminals 10 | . 10 . . . Fabricators . | . . . . . Repair Stations 2 | . 2 . . . Recycling Units 5 | . 2 . . 3 Scanalyzers . | . . . . . Garrison Access . | . . . . . Terminal Hacks 47 | . 3 . 44 . Record 37 | . . . 37 . Robot Analysis 9 | . 3 . 6 . Proto ID Catalog 1 | . . . 1 . Fabricator Hacks . | . . . . . Repair Station Hacks 2 | . 2 . . . Scan Component 1 | . 1 . . . Repair 1 | . 1 . . . Recycling Unit Hacks . | . . . . . Scanalyzer . | . . . . . Garrison Access Hacks . | . . . . . Unauthorized Hacks . | . . . . . Terminals . | . . . . . Fabricators . | . . . . . Repair Stations . | . . . . . Recycling Units . | . . . . . Scanalyzers . | . . . . . Garrison Access . | . . . . . Data Cores Recovered . | . . . . . Used . | . . . . . Hacking Detections 8 | . 7 . . 1 Full Trace Events . | . . . . . Feedback Events . | . . . . . Feedback Blocked . | . . . . . Robot Schematics Acquired . | . . . . . Robots Built . | . . . . . Authchips . | . . . . . Time . | . . . . . Total Robot Build Rating . | . . . . . Part Schematics Acquired . | . . . . . Parts Built . | . . . . . Authchips . | . . . . . Time . | . . . . . Total Part Build Rating . | . . . . . Parts Repaired 1 | . 1 . . . Time 26 | . 26 . . . Parts Recycled . | . . . . . Recycled Matter . | . . . . . Retrieved Matter . | . . . . . Retrieved Components . | . . . . . Parts Scanalyzed . | . . . . . Part Schematics Acquired . | . . . . . Parts Damaged . | . . . . . Bothacking | -11 -10 -10 -8 -6 ------------ Run | Yrd Mat Sub Scr Fac Used RIF Installer . | . . . . . Robots Hacked . | . . . . . Non-combat . | . . . . . Combat . | . . . . . Robot Hacks Applied . | . . . . . Relay Couplers Released . | . . . . . Fabnet Peak Effective % . | . . . . . Robots Rewired . | . . . . . Allies Hacked . | . . . . . Hacks Repelled . | . . . . . Allies | -11 -10 -10 -8 -6 -------- Run | Yrd Mat Sub Scr Fac Total Allies . | . . . . . Largest Group . | . . . . . Highest-Rated Group . | . . . . . Highest-Rated Ally . | . . . . . Total Orders . | . . . . . Ally Attacks . | . . . . . Total Damage . | . . . . . Kills . | . . . . . Allies Corrupted . | . . . . . Allies Melted 4 | . . . 4 . Intel | -11 -10 -10 -8 -6 ------- Run | Yrd Mat Sub Scr Fac Active Infowar (turns) 1359 | . 1359 . . . T.N.C. 1359 | . 1359 . . . Robot Analysis Total 9 | . 3 . 6 . Derelict Logs Recovered 2 | . . . 2 . Drone Launches . | . . . . . Drone Recoveries . | . . . . . Exploration | -11 -10 -10 -8 -6 ------------- Run | Yrd Mat Sub Scr Fac Turns Passed 8735 | 114 1903 345 5381 992 Spaces Moved 2732 | 49 562 100 1677 344 Core 4 | 4 . . . . Treads 2563 | 17 425 100 1677 344 Legs 165 | 28 137 . . . Wheels . | . . . . . Hover . | . . . . . Flight . | . . . . . Fastest Speed 50 | 50 120 320 180 180 Average Speed 292 | 128 272 320 317 221 Slowest Speed 650 | 160 480 320 320 650 Overloaded Moves . | . . . . . Propulsion Burnouts . | . . . . . Robots Hopped . | . . . . . Potential Cave-ins 1 | . . . . 1 Cave-ins Triggered . | . . . . . Exploration Rate (%) 40 | 5 89 6 90 10 Regions Visited 4 Branch Regions 2 Pre-discovered Areas . | . . . . . Known Exits Taken 1 | . 1 . . . Unknown Exits Taken 3 | 1 . 1 1 . Scrap Searched 7 | . . . 7 . Spaces Dug 21 | . . . . 21 Terrain Destroyed 85 | . . . . 85 Melee . | . . . . . Projectile 1 | . . . . 1 AOE 84 | . . . . 84 Terrain Rammed . | . . . . . Walls Destroyed . | . . . . . Machines Disabled . | . . . . . Actions | -11 -10 -10 -8 -6 --------- Run | Yrd Mat Sub Scr Fac Total 3177 | 76 754 112 1745 490 Wait 92 | 1 67 . 1 23 Move 2728 | 48 561 99 1676 344 Hop . | . . . . . Pick Up 66 | 9 16 3 27 11 Fast Attach 21 | 5 2 . 6 8 Attach 15 | 1 2 . 1 11 Detach 2 | . 1 . . 1 Swap 24 | 2 6 3 4 9 Drop 36 | . 6 . 26 4 Fire 181 | 10 88 6 4 73 Melee 1 | . . 1 . . Ram . | . . . . . Kick . | . . . . . Crush 11 | . 5 . . 6 Escape Stasis . | . . . . . Rewire . | . . . . . Trap . | . . . . . Miscellaneous . | . . . . . Route ------- -11/Scrapyard -10/Materials (discovered 5 exits: [*Mat x2] / [*Min x2] / *Sub) -10/Subcaves -8/Scraptown (discovered 2 exits: *Fac x2) -6/Factory (discovered 1 exit: Ext) History --------- Turn | Location | Event 8 | -11/Scrapyard | Discovered new exit (range 16) 115 | -11/Scrapyard | Entered Materials 306 | -10/Materials | Build established: Mutant 385 | -10/Materials | Discovered new exit (range 15) 631 | -10/Materials | Discovered new exit (range 16) 1220 | -10/Materials | Discovered new exit (range 16) 1419 | -10/Materials | Discovered new exit (range 8) 1550 | -10/Materials | Identified exit to Subcaves 1699 | -10/Materials | Repaired Lgt. Treads 1845 | -10/Materials | Discovered new exit (range 8) 2018 | -10/Materials | Entered Subcaves 2019 | -10/Subcaves | Approached by a straggling Scientist 2020 | -10/Subcaves | Shifting Twisted Machinery released Sub. Monowheel 2086 | -10/Subcaves | Shifting Twisted Machinery released Battle Rifle 2166 | -10/Subcaves | A swath of the cavern ceiling suddenly collapsed 2278 | -10/Subcaves | Scientist uncovered a shortcut to Scraptown 2363 | -10/Subcaves | Entered Scraptown 3563 | -8/Scraptown | Scanned Subdweller tech in exchange for log data 3579 | -8/Scraptown | Learned location of 1 exit from Research 3583 | -8/Scraptown | Learned location of 1 exit from Factory 3627 | -8/Scraptown | Discovered new exit (range 5) 3851 | -8/Scraptown | Visited Fellowship of the Rings 3922 | -8/Scraptown | Visited SPCMW 4053 | -8/Scraptown | Visited Comm Corps 4677 | -8/Scraptown | Visited Assassins FH 4754 | -8/Scraptown | Visited Bundlers 5012 | -8/Scraptown | Visited UFD Registry 5053 | -8/Scraptown | Visited The Evicted 5159 | -8/Scraptown | Visited Awakened 5840 | -8/Scraptown | Registered with UFD as "Guncore" 5904 | -8/Scraptown | Visited A0-MCA Data Center 5924 | -8/Scraptown | Given a B- rating by A0-MCA 5931 | -8/Scraptown | Found A0-MCA's Component Scanner 5992 | -8/Scraptown | Visited Analyses Database 6072 | -8/Scraptown | Visited Science Guys 6235 | -8/Scraptown | Delivered Scrap Shield to a Scientist 6726 | -8/Scraptown | Visited LU-1G1's Boring Crew 6972 | -8/Scraptown | Visited Infowarlord's Domain 6999 | -8/Scraptown | Found Exp. Terrain Scan Processor 7112 | -8/Scraptown | Met Optimus 7112 | -8/Scraptown | Accepted into 0bPrime 7352 | -8/Scraptown | Visited Scrap Suit Storage 7368 | -8/Scraptown | Found Scrap Suit 7387 | -8/Scraptown | Found Scrap Suit 7484 | -8/Scraptown | Visited Curators Association 7495 | -8/Scraptown | Civil war broke out across Scraptown 7530 | -8/Scraptown | Discovered new exit (range 8) 7534 | -8/Scraptown | Found Surveybot 24 Chip 7558 | -8/Scraptown | Lost 4 allies 7667 | -8/Scraptown | Optimus destroyed in the chaos of civil war 7680 | -8/Scraptown | Core integrity fell below 50% 7708 | -8/Scraptown | Lost 12 allies 7715 | -8/Scraptown | Lost 3 parts (1p2w) 7744 | -8/Scraptown | Entered Factory 7744 | -6/Factory | Evolved 8 slots: Power x1, Propulsion x2, Utility x4, Weapon x1 7745 | -6/Factory | Identified exit to Extension 8033 | -6/Factory | Build established: Scavenger-Scrapper 8524 | -6/Factory | Lost 4 parts (1p1n1u1w) 8605 | -6/Factory | Lost 4 parts (1p1n2w) 8718 | -6/Factory | Lost 4 parts (1p1n1u1w) 8736 | -6/Factory | Self-destructed Last Messages --------------- 08699_ S-27 Virus destroyed. 08701_ K-01 Serf collects debris. 08701_ R-10 Processor collects VTOL Module. 08702_ K-01 Serf collects debris. 08703_ System corrupted: Energy discharge (-107). 08704_ S-27 Virus suffers critical hit (Meltdown). 08704_ VTOL Module melted. 08705_ K-01 Serf collects debris. 08706_ Acquired 24 matter. 08707_ R-10 Processor collects Lgt. Nuclear Core. 08709_ K-01 Serf collects debris. 08717_ Acquired Prototype Flight Unit. 08717_ Identified Cld. Cesium-ion Thruster. 08718_ K-01 Serf collects debris. 08734_ U-05 Engineer lays Concrete. 08736_ Connecting with Recycling Unit... 08736_ Current location identified: Factory Map ----- +----------------------------------------------------+ | ?????????????????????????????????????????????????? | | ?????????????????????????????????????????????????? | | ?????????????????????????????????????????????????? | | ?????????????????????????????????????????????????? | | ?????????????????????????????????????????????????? | | ?????????????????????????????????????????????????? | | ?????????????????????????????????????????????????? | | ???????????????????????????????? #???????????????? | | ???????????????????????????????? #?? ???????????? | | ???????????????????????????????? #? #?????????? | | ???????????????????????????#####/## #?????????? | | ?????????????????#? ????????/ #?????????? | | ?????????????????? ??????? ##????????? | | ?????????????????? ??????!!! T#????????? | | ??????????????????# ! ??????!!! #????????? | | ??????????????????# ""?????!! [[ #?????????? | | ????????????????### ""????? [[ #?????????? | | ???????????????## # ????? #?????????? | | #????????########## ????? # ??????? | | #???????? = / # ######## + ???????? | | #?????= ?"" !/ # ! # #?????????? | | #????# """ !/ # # #?????????? | | #????# """ # %% % +% ##??????????? | | #????# "" = # k # #???????????? | | #????# "" # """ # #???????????? | | #????# #% @Y" # #???????????? | | #????# # # """ #### #???????????? | | #????# # # #??? #???????????? | | #????# # #######???? #???????????? | | #????# # ##????? #???????????? | | #????# # ##### #???????????? | | ######""""#####+# # % !#???????????? | | u %#???????????? | | =#???????????? | | ! ?+???????????? | | % ?????????????? | | %= ^^ ?????????????? | | #########+######### ??????????????? | | ?### # #######??????????????? | | ???# #############????????????????????? | | ???# """"""""" #????????????????????????????????? | | ???# #????????????????????????????????? | | ???# """"""""" #????????????????????????????????? | | ???# #????????????????????????????????? | | ???# """"""""" #????????????????????????????????? | | ???# #????????????????????????????????? | | ???# """"""""" ##???????????????????????????????? | | ???# ##??????????????????????????????? | | ???# """"""""" #??????????????????????????????? | | ???# #???????????????????????????????? | +----------------------------------------------------+ Best States ------------- Heat Dissipation 59 Energy Generation 25 Energy Capacity 455 Matter Stores 300 Matter Capacity 300 Sight Range 16 Terrain Scan Density 10 Armor Coverage 600 Resistance: EM 15 Core Shielding 20 Evasion (%) 55 Targeting Accuracy 8 Recoil Reduction 4 Item Schematics ----------------- None Robot Schematics ------------------ None Fabricated ------------ Nothing Repaired ---------- Lgt. Treads | 27% | -10/Materials Alien Tech Used ----------------- None Achievements -------------- None Challenges ------------ None Game ------ Seed LobotomyEfficiencyArmor Manual? 0 Play Time 00:55:41 Cumulative 101.0 hours Start 2025.09.08 @ 13:45:09 End 2025.09.08 @ 16:52:17 Sessions 5 Manual Loads 0 Difficulty Rogue Special Mode None Game No. 55 Rogue 55 Adventurer 0 Explorer 0 Win Type - Total 3 Types 1/0/0/2/0/0/0/0/0/0 Lore% 49 Gallery% 58 Achievement% 55 Wizard Run 0 Options --------- Layout 1 ASCII 0 Keyboard 0 Movement Numpad Keybinds 0 Fullscreen 1 Font 32/Tamsyn Map View 50x40 Zoom Use 0% Tactical HUD 1 Map Filters NONE Filters NONE Steam 1 RUN: eebaede0-75d0-43b7-b043-cac37581da50